[Event "NJSK 2022 Jeugd C"]
[Site "Almelo, Netherlands"]
[Date "2022.05.05"]
[Round "6.3"]
[White "Kumar, Prajit Sai"]
[Black "Kurt, Sascha"]
[Result "1-0"]
[TimeControl "90min + 30sec/move"]
[WhiteElo "2042"]
[BlackElo "1834"]

1. d4 {[%clk 01:30:58]} {[%emt 00:00:02]} Nf6 {[%clk 01:30:54]} {[%emt
00:00:07]} 2. Nf3 {[%clk 01:31:10]} {[%emt 00:00:18]} g6 {[%clk 01:31:18]}
{[%emt 00:00:05]} 3. Bg5 {[%clk 01:31:37]} {[%emt 00:00:03]} Bg7 {[%clk
01:31:44]} {[%emt 00:00:05]} 4. Nbd2 {[%clk 01:32:03]} {[%emt 00:00:04]} d6
{[%clk 01:32:00]} {[%emt 00:00:14]} 5. e4 {[%clk 01:32:06]} {[%emt 00:00:27]}
O-O {[%clk 01:32:22]} {[%emt 00:00:08]} 6. c3 {[%clk 01:32:32]} {[%emt
00:00:04]} c5 {[%clk 01:32:47]} {[%emt 00:00:05]} 7. dxc5 {[%clk 01:32:46]}
{[%emt 00:00:16]} dxc5 {[%clk 01:33:12]} {[%emt 00:00:05]} 8. Be2 {[%clk
01:33:11]} {[%emt 00:00:06]} Nc6 {[%clk 01:33:05]} {[%emt 00:00:37]} 9. O-O
{[%clk 01:33:15]} {[%emt 00:00:26]} Qc7 {[%clk 01:33:06]} {[%emt 00:00:29]} 10.
Qc2 {[%clk 01:33:07]} {[%emt 00:00:38]} h6 {[%clk 01:32:46]} {[%emt 00:00:50]}
11. Bh4 {[%clk 01:33:21]} {[%emt 00:00:16]} Nh5 {[%clk 01:31:13]} {[%emt
00:02:03]} 12. Nc4 {[%clk 01:32:11]} {[%emt 00:01:40]} Be6 {[%clk 01:24:13]}
{[%emt 00:07:30]} 13. Ne3 {[%clk 01:28:08]} {[%emt 00:04:33]} Nf4 {[%clk
01:19:49]} {[%emt 00:04:54]} 14. Bg3 {[%clk 01:21:28]} {[%emt 00:07:10]} Nxe2+
{[%clk 01:16:07]} {[%emt 00:04:12]} 15. Qxe2 {[%clk 01:21:48]} {[%emt
00:00:10]} Qa5 {[%clk 00:59:48]} {[%emt 00:16:48]} 16. Nd5 {[%clk 01:18:03]}
{[%emt 00:04:15]} Rac8 {[%clk 00:55:03]} {[%emt 00:05:15]} 17. Nd2 {[%clk
01:10:17]} {[%emt 00:08:16]} Qd8 {[%clk 00:48:36]} {[%emt 00:06:57]} 18. Ne3
{[%clk 01:08:28]} {[%emt 00:02:19]} b5 {[%clk 00:44:12]} {[%emt 00:04:54]} 19.
f4 {[%clk 00:56:41]} {[%emt 00:12:17]} f6 {[%clk 00:38:16]} {[%emt 00:06:27]}
20. Rfd1 {[%clk 00:54:02]} {[%emt 00:03:09]} Qb6 {[%clk 00:35:50]} {[%emt
00:02:56]} 21. f5 {[%clk 00:49:31]} {[%emt 00:05:01]} gxf5 {[%clk 00:34:23]}
{[%emt 00:01:57]} 22. exf5 {[%clk 00:48:53]} {[%emt 00:01:08]} Bf7 {[%clk
00:34:26]} {[%emt 00:00:27]} 23. Ne4 {[%clk 00:43:48]} {[%emt 00:05:34]} Ne5
{[%clk 00:22:45]} {[%emt 00:12:11]} 24. Bxe5 {[%clk 00:43:18]} {[%emt
00:01:01]} fxe5 {[%clk 00:23:07]} {[%emt 00:00:07]} 25. Kh1 {[%clk 00:36:36]}
{[%emt 00:07:12]} Rcd8 {[%clk 00:20:32]} {[%emt 00:03:05]} 26. Qg4 {[%clk
00:34:29]} {[%emt 00:02:37]} Kh7 {[%clk 00:15:55]} {[%emt 00:05:07]} 27. Qh3
{[%clk 00:29:37]} {[%emt 00:05:23]} Rxd1+ {[%clk 00:13:27]} {[%emt 00:02:58]}
28. Rxd1 {[%clk 00:29:57]} {[%emt 00:00:09]} Rd8 {[%clk 00:12:48]} {[%emt
00:01:09]} 29. Rf1 {[%clk 00:30:22]} {[%emt 00:00:06]} Kg8 {[%clk 00:12:36]}
{[%emt 00:00:41]} 30. f6 {[%clk 00:27:23]} {[%emt 00:03:29]} exf6 {[%clk
00:12:47]} {[%emt 00:00:19]} 31. Qh4 {[%clk 00:22:59]} {[%emt 00:04:54]} h5
{[%clk 00:10:32]} {[%emt 00:02:46]} 32. Nxf6+ {[%clk 00:22:54]} {[%emt
00:00:34]} Bxf6 {[%clk 00:10:37]} {[%emt 00:00:25]} 33. Rxf6 {[%clk 00:23:19]}
{[%emt 00:00:05]} Rd6 {[%clk 00:09:30]} {[%emt 00:01:38]} 34. Qg5+ {[%clk
00:22:41]} {[%emt 00:01:07]} Bg6 {[%clk 00:09:45]} {[%emt 00:00:16]} 35. Qxg6+
{[%clk 00:23:05]} {[%emt 00:00:06]} Kh8 {[%clk 00:10:04]} {[%emt 00:00:10]} 36.
Rf8# {[%clk 00:23:27]} {[%emt 00:00:07]} 1-0

[Event "NJSK 2022 Jeugd C"]
[Site "Almelo, Netherlands"]
[Date "2022.05.05"]
[Round "6.4"]
[White "Lopes, Samuel"]
[Black "Smeets, Kobe"]
[Result "0-1"]
[TimeControl "90min + 30sec/move"]
[WhiteElo "1600"]
[BlackElo "1984"]

1. b3 {[%clk 01:30:48]} {[%emt 00:00:11]} d5 {[%clk 01:30:53]} {[%emt
00:00:08]} 2. Bb2 {[%clk 01:31:13]} {[%emt 00:00:05]} c5 {[%clk 01:30:58]}
{[%emt 00:00:25]} 3. e3 {[%clk 01:31:36]} {[%emt 00:00:06]} Nc6 {[%clk
01:31:15]} {[%emt 00:00:13]} 4. Bb5 {[%clk 01:32:00]} {[%emt 00:00:06]} Qc7
{[%clk 01:28:32]} {[%emt 00:03:14]} 5. d3 {[%clk 01:31:24]} {[%emt 00:01:06]}
a6 {[%clk 01:26:22]} {[%emt 00:02:40]} 6. Bxc6+ {[%clk 01:31:45]} {[%emt
00:00:09]} Qxc6 {[%clk 01:26:46]} {[%emt 00:00:05]} 7. Nf3 {[%clk 01:31:18]}
{[%emt 00:00:57]} Nf6 {[%clk 01:26:43]} {[%emt 00:00:33]} 8. h3 {[%clk
01:23:08]} {[%emt 00:08:40]} e6 {[%clk 01:16:47]} {[%emt 00:10:26]} 9. c4
{[%clk 01:19:03]} {[%emt 00:04:35]} Be7 {[%clk 01:15:40]} {[%emt 00:01:38]} 10.
O-O {[%clk 01:17:45]} {[%emt 00:01:47]} O-O {[%clk 01:15:49]} {[%emt 00:00:21]}
11. Nc3 {[%clk 01:15:31]} {[%emt 00:02:44]} b6 {[%clk 01:12:39]} {[%emt
00:03:40]} 12. cxd5 {[%clk 01:12:24]} {[%emt 00:03:37]} exd5 {[%clk 01:12:39]}
{[%emt 00:00:30]} 13. Rc1 {[%clk 01:11:11]} {[%emt 00:01:43]} Bb7 {[%clk
01:11:13]} {[%emt 00:01:56]} 14. d4 {[%clk 01:10:22]} {[%emt 00:01:19]} Rac8
{[%clk 01:09:35]} {[%emt 00:02:08]} 15. Na4 {[%clk 01:08:26]} {[%emt 00:02:26]}
Rfd8 {[%clk 00:59:55]} {[%emt 00:10:10]} 16. Ba3 {[%clk 01:02:27]} {[%emt
00:06:29]} Ne4 {[%clk 00:59:37]} {[%emt 00:00:47]} 17. Nd2 {[%clk 01:00:28]}
{[%emt 00:02:30]} Qe6 {[%clk 00:57:50]} {[%emt 00:02:16]} 18. Qe2 {[%clk
00:54:06]} {[%emt 00:06:52]} cxd4 {[%clk 00:48:06]} {[%emt 00:10:15]} 19. Bxe7
{[%clk 00:53:46]} {[%emt 00:00:49]} Qxe7 {[%clk 00:48:31]} {[%emt 00:00:05]} 20.
exd4 {[%clk 00:53:39]} {[%emt 00:00:37]} Qb4 {[%clk 00:48:26]} {[%emt
00:00:36]} 21. Nf3 {[%clk 00:49:56]} {[%emt 00:04:12]} b5 {[%clk 00:42:32]}
{[%emt 00:06:25]} 22. Nc5 {[%clk 00:43:48]} {[%emt 00:06:39]} Nxc5 {[%clk
00:42:17]} {[%emt 00:00:44]} 23. dxc5 {[%clk 00:43:53]} {[%emt 00:00:25]} d4
{[%clk 00:40:04]} {[%emt 00:02:44]} 24. Qd2 {[%clk 00:29:15]} {[%emt 00:15:06]}
Qa3 {[%clk 00:29:00]} {[%emt 00:11:35]} 25. Nxd4 {[%clk 00:27:21]} {[%emt
00:02:24]} Rxc5 {[%clk 00:18:34]} {[%emt 00:10:56]} 26. Rxc5 {[%clk 00:26:20]}
{[%emt 00:01:31]} Qxc5 {[%clk 00:18:54]} {[%emt 00:00:10]} 27. Ne6 {[%clk
00:25:50]} {[%emt 00:00:59]} Rxd2 {[%clk 00:19:19]} {[%emt 00:00:06]} 28. Nxc5
{[%clk 00:26:12]} {[%emt 00:00:08]} Bc8 {[%clk 00:19:43]} {[%emt 00:00:06]} 29.
Ne4 {[%clk 00:21:21]} {[%emt 00:05:20]} Rd4 {[%clk 00:16:55]} {[%emt 00:03:18]}
30. Nc3 {[%clk 00:19:19]} {[%emt 00:02:31]} Kf8 {[%clk 00:17:10]} {[%emt
00:00:16]} 31. Rd1 {[%clk 00:18:36]} {[%emt 00:01:11]} Rxd1+ {[%clk 00:17:25]}
{[%emt 00:00:18]} 32. Nxd1 {[%clk 00:19:00]} {[%emt 00:00:06]} Ke7 {[%clk
00:17:49]} {[%emt 00:00:07]} 33. Kf1 {[%clk 00:18:42]} {[%emt 00:00:47]} Kd6
{[%clk 00:18:14]} {[%emt 00:00:05]} 34. Ke2 {[%clk 00:11:53]} {[%emt 00:07:19]}
Kc5 {[%clk 00:18:41]} {[%emt 00:00:04]} 35. Kd2 {[%clk 00:11:16]} {[%emt
00:01:05]} Kd4 {[%clk 00:18:32]} {[%emt 00:00:41]} 36. Ne3 {[%clk 00:10:07]}
{[%emt 00:01:36]} Be6 {[%clk 00:18:22]} {[%emt 00:00:42]} 37. Nc2+ {[%clk
00:09:09]} {[%emt 00:01:28]} Ke4 {[%clk 00:17:45]} {[%emt 00:01:07]} 38. Ke2
{[%clk 00:07:37]} {[%emt 00:02:00]} Bd5 {[%clk 00:16:53]} {[%emt 00:01:24]} 39.
Nb4 {[%clk 00:06:12]} {[%emt 00:01:55]} Bb7 {[%clk 00:17:16]} {[%emt 00:00:08]}
40. Nd3 {[%clk 00:06:20]} {[%emt 00:00:19]} Kd4 {[%clk 00:17:26]} {[%emt
00:00:22]} 41. f3 {[%clk 00:04:18]} {[%emt 00:02:31]} Kc3 {[%clk 00:16:52]}
{[%emt 00:01:05]} 42. a4 {[%clk 00:02:24]} {[%emt 00:02:24]} Bd5 {[%clk
00:15:58]} {[%emt 00:01:23]} 43. axb5 {[%clk 00:01:21]} {[%emt 00:01:34]} axb5
{[%emt 00:01:01]} 44. Nc5 {[%clk 00:00:55]} Bxb3 {[%clk 00:16:38]} {[%emt
00:00:14]} 45. Ne4+ {[%clk 00:00:51]} {[%emt 00:00:35]} Kc2 {[%clk 00:16:24]}
{[%emt 00:00:45]} 46. Nc5 {[%clk 00:00:50]} {[%emt 00:00:29]} Bc4 {[%clk
00:16:42]} {[%emt 00:00:12]} 47. Ke3 {[%clk 00:01:02]} {[%emt 00:00:18]} b4
{[%clk 00:16:31]} {[%emt 00:00:42]} 48. Kd4 {[%clk 00:01:03]} {[%emt 00:00:29]}
b3 {[%clk 00:14:16]} {[%emt 00:02:45]} 49. Na4 {[%clk 00:01:09]} {[%emt
00:00:24]} Bf1 {[%clk 00:14:04]} {[%emt 00:00:42]} 50. g3 {[%clk 00:01:11]}
{[%emt 00:00:28]} Bxh3 {[%clk 00:14:20]} {[%emt 00:00:13]} 51. Ke3 {[%clk
00:01:05]} {[%emt 00:00:36]} b2 {[%clk 00:14:27]} {[%emt 00:00:24]} 52. Nxb2
{[%clk 00:01:28]} {[%emt 00:00:07]} Kxb2 {[%clk 00:14:51]} {[%emt 00:00:06]} 53.
f4 {[%clk 00:01:39]} {[%emt 00:00:18]} Be6 {[%clk 00:15:15]} {[%emt 00:00:07]}
54. Ke4 {[%clk 00:02:02]} {[%emt 00:00:07]} h5 {[%clk 00:15:39]} {[%emt
00:00:06]} 55. Ke5 {[%clk 00:02:17]} {[%emt 00:00:14]} g6 {[%clk 00:15:54]}
{[%emt 00:00:16]} 56. Kf6 {[%clk 00:02:30]} {[%emt 00:00:16]} Kc3 {[%clk
00:16:12]} {[%emt 00:00:14]} 57. f5 {[%clk 00:02:30]} {[%emt 00:00:29]} Bxf5
{[%clk 00:16:35]} {[%emt 00:00:06]} 58. Kxf7 {[%clk 00:02:50]} {[%emt
00:00:11]} Kd3 {[%clk 00:16:59]} {[%emt 00:00:06]} 59. Kf6 {[%clk 00:03:13]}
{[%emt 00:00:06]} Ke3 {[%clk 00:17:19]} {[%emt 00:00:11]} 60. Kg5 {[%clk
00:03:36]} {[%emt 00:00:07]} Kf3 {[%clk 00:17:43]} {[%emt 00:00:06]} 61. Kh4
{[%clk 00:03:58]} {[%emt 00:00:07]} Bc8 {[%clk 00:18:02]} {[%emt 00:00:12]} 62.
g4 {[%clk 00:04:13]} {[%emt 00:00:15]} hxg4 {[%clk 00:18:18]} {[%emt 00:00:14]}
63. Kg5 {[%clk 00:04:35]} {[%emt 00:00:08]} g3 {[%clk 00:18:44]} {[%emt
00:00:04]} 64. Kh6 {[%clk 00:04:52]} {[%emt 00:00:12]} g2 {[%clk 00:19:05]}
{[%emt 00:00:10]} 65. Kg7 {[%clk 00:05:14]} {[%emt 00:00:07]} g1=Q {[%clk
00:19:26]} {[%emt 00:00:09]} 66. Kh8 {[%clk 00:05:38]} {[%emt 00:00:07]} Qa7
{[%clk 00:19:39]} {[%emt 00:00:17]} 67. Kg8 {[%clk 00:06:00]} {[%emt 00:00:08]}
Kf4 {[%clk 00:19:46]} {[%emt 00:00:23]} 68. Kh8 {[%clk 00:06:16]} {[%emt
00:00:13]} Kf5 {[%clk 00:20:08]} {[%emt 00:00:08]} 69. Kg8 {[%clk 00:06:38]}
{[%emt 00:00:08]} Kf6 {[%clk 00:20:31]} {[%emt 00:00:08]} 70. Kh8 {[%clk
00:07:01]} {[%emt 00:00:07]} Qg7# {[%clk 00:20:56]} {[%emt 00:00:05]} 0-1

[Event "NJSK 2022 Jeugd C"]
[Site "Almelo, Netherlands"]
[Date "2022.05.05"]
[Round "6.5"]
[White "Ponomarev, Ivan"]
[Black "Madularea, David"]
[Result "1/2-1/2"]
[TimeControl "90min + 30sec/move"]
[WhiteElo "1744"]
[BlackElo "1774"]

1. e4 {[%clk 01:30:58]} {[%emt 00:00:02]} c5 {[%clk 01:30:53]} {[%emt
00:00:08]} 2. Nf3 {[%clk 01:31:26]} {[%emt 00:00:02]} d6 {[%clk 01:31:15]}
{[%emt 00:00:07]} 3. Bb5+ {[%clk 01:31:51]} {[%emt 00:00:06]} Bd7 {[%clk
01:31:37]} {[%emt 00:00:07]} 4. Bxd7+ {[%clk 01:32:10]} {[%emt 00:00:12]} Qxd7
{[%clk 01:32:01]} {[%emt 00:00:05]} 5. O-O {[%clk 01:32:01]} {[%emt 00:00:40]}
Nf6 {[%clk 01:31:50]} {[%emt 00:00:41]} 6. Qe2 {[%clk 01:31:15]} {[%emt
00:01:16]} Nc6 {[%clk 01:31:32]} {[%emt 00:00:48]} 7. c3 {[%clk 01:31:16]}
{[%emt 00:00:30]} e6 {[%clk 01:26:10]} {[%emt 00:05:50]} 8. d4 {[%clk
01:31:18]} {[%emt 00:00:29]} cxd4 {[%clk 01:26:32]} {[%emt 00:00:08]} 9. cxd4
{[%clk 01:31:43]} {[%emt 00:00:04]} d5 {[%clk 01:26:25]} {[%emt 00:00:37]} 10.
e5 {[%clk 01:31:15]} {[%emt 00:00:58]} Ne4 {[%clk 01:26:16]} {[%emt 00:00:39]}
11. Be3 {[%clk 01:31:31]} {[%emt 00:00:15]} Be7 {[%clk 01:25:01]} {[%emt
00:01:44]} 12. Ne1 {[%clk 01:31:08]} {[%emt 00:00:54]} h5 {[%clk 01:19:23]}
{[%emt 00:06:08]} 13. f3 {[%clk 01:26:02]} {[%emt 00:05:36]} Ng5 {[%clk
01:19:10]} {[%emt 00:00:42]} 14. Nc3 {[%clk 01:23:00]} {[%emt 00:03:33]} f5
{[%clk 01:11:14]} {[%emt 00:08:26]} 15. Nd3 {[%clk 01:11:32]} {[%emt 00:11:58]}
Nf7 {[%clk 01:06:45]} {[%emt 00:04:58]} 16. f4 {[%clk 01:05:24]} {[%emt
00:06:39]} a6 {[%clk 00:59:37]} {[%emt 00:07:39]} 17. a4 {[%clk 00:56:38]}
{[%emt 00:09:15]} b6 {[%clk 00:54:22]} {[%emt 00:05:44]} 18. Rfc1 {[%clk
00:47:39]} {[%emt 00:09:28]} h4 {[%clk 00:45:01]} {[%emt 00:09:52]} 19. Rab1
{[%clk 00:38:35]} {[%emt 00:09:36]} Nb4 {[%clk 00:38:14]} {[%emt 00:07:16]} 20.
Nxb4 {[%emt 00:07:28]} Bxb4 {[%clk 00:38:37]} {[%emt 00:00:01]} 21. b3 {[%clk
00:30:33]} {[%emt 00:01:40]} O-O {[%clk 00:23:40]} {[%emt 00:15:26]} 22. Qh5
{[%clk 00:20:56]} {[%emt 00:10:06]} Rfc8 {[%clk 00:19:11]} {[%emt 00:05:01]} 23.
Ne2 {[%clk 00:16:48]} {[%emt 00:04:37]} Ba3 {[%clk 00:18:44]} {[%emt 00:00:58]}
24. Rxc8+ {[%clk 00:14:47]} {[%emt 00:02:31]} Qxc8 {[%clk 00:18:52]} {[%emt
00:00:22]} 25. Qxh4 {[%clk 00:13:17]} {[%emt 00:01:59]} Qc2 {[%clk 00:18:40]}
{[%emt 00:00:43]} 26. Qe1 {[%clk 00:12:54]} {[%emt 00:00:52]} Nh6 {[%clk
00:12:49]} {[%emt 00:06:22]} 27. h3 {[%clk 00:11:38]} {[%emt 00:01:46]} Rc8
{[%clk 00:11:38]} {[%emt 00:01:41]} 28. Kf2 {[%clk 00:08:59]} {[%emt 00:03:09]}
Qe4 {[%clk 00:09:57]} {[%emt 00:02:10]} 29. Rd1 {[%clk 00:03:54]} {[%emt
00:05:36]} a5 {[%clk 00:06:07]} {[%emt 00:04:20]} 30. Qd2 {[%clk 00:02:56]}
{[%emt 00:01:28]} Rc2 {[%clk 00:02:45]} {[%emt 00:03:51]} 31. Qd3 {[%clk
00:03:14]} {[%emt 00:00:12]} Qxd3 {[%clk 00:02:50]} {[%emt 00:00:25]} 32. Rxd3
{[%clk 00:03:39]} {[%emt 00:00:05]} Bb4 {[%clk 00:03:13]} {[%emt 00:00:07]} 33.
Kf3 {[%clk 00:02:28]} {[%emt 00:01:43]} Kf7 {[%clk 00:02:55]} {[%emt 00:00:46]}
34. g4 {[%clk 00:01:45]} {[%emt 00:01:13]} fxg4+ {[%clk 00:03:12]} {[%emt
00:00:13]} 35. hxg4 {[%clk 00:02:13]} {[%emt 00:00:02]} Nxg4 {[%clk 00:03:31]}
{[%emt 00:00:11]} 36. Kxg4 {[%clk 00:02:21]} {[%emt 00:00:23]} Rxe2 {[%clk
00:03:55]} {[%emt 00:00:06]} 37. f5 {[%clk 00:01:39]} {[%emt 00:01:12]} exf5+
{[%clk 00:01:50]} {[%emt 00:02:34]} 38. Kxf5 {[%clk 00:01:59]} {[%emt
00:00:11]} g6+ {[%clk 00:02:03]} {[%emt 00:00:17]} 39. Kg4 {[%clk 00:01:46]}
{[%emt 00:00:43]} Ke6 {[%clk 00:01:42]} {[%emt 00:00:51]} 40. Kf3 {[%clk
00:01:41]} {[%emt 00:00:35]} Rc2 {[%clk 00:01:08]} {[%emt 00:01:03]} 41. Kg4
{[%clk 00:00:58]} {[%emt 00:01:13]} Rg2+ {[%clk 00:00:57]} {[%emt 00:00:41]} 42.
Kf3 {[%clk 00:01:11]} {[%emt 00:00:17]} 1/2-1/2

[Event "NJSK 2022 Jeugd C"]
[Site "Almelo, Netherlands"]
[Date "2022.05.05"]
[Round "6.6"]
[White "Kazarjan, Gachatur"]
[Black "Fallaux, Storm"]
[Result "1-0"]
[TimeControl "90min + 30sec/move"]
[WhiteElo "1661"]
[BlackElo "1459"]

1. e4 {[%clk 01:30:59]} c5 {[%clk 01:30:53]} {[%emt 00:00:07]} 2. Nf3 {[%clk
01:31:22]} {[%emt 00:00:07]} d6 {[%clk 01:31:18]} {[%emt 00:00:05]} 3. d4
{[%clk 01:31:47]} {[%emt 00:00:05]} cxd4 {[%clk 01:31:44]} {[%emt 00:00:04]} 4.
Nxd4 {[%clk 01:32:14]} {[%emt 00:00:04]} Nf6 {[%clk 01:32:09]} {[%emt
00:00:04]} 5. Nc3 {[%clk 01:32:39]} {[%emt 00:00:05]} a6 {[%clk 01:32:36]}
{[%emt 00:00:03]} 6. f4 {[%clk 01:32:53]} {[%emt 00:00:16]} Nc6 {[%clk
01:32:12]} {[%emt 00:00:55]} 7. Be3 {[%clk 01:31:59]} {[%emt 00:01:23]} e6
{[%clk 01:30:12]} {[%emt 00:02:31]} 8. Be2 {[%clk 01:32:12]} {[%emt 00:00:16]}
Nxd4 {[%clk 01:29:25]} {[%emt 00:01:17]} 9. Bxd4 {[%clk 01:32:32]} {[%emt
00:00:11]} b5 {[%clk 01:29:35]} {[%emt 00:00:20]} 10. Bf3 {[%clk 01:32:45]}
{[%emt 00:00:17]} Bb7 {[%clk 01:29:38]} {[%emt 00:00:26]} 11. Qe2 {[%clk
01:31:43]} {[%emt 00:01:32]} Rc8 {[%clk 01:27:07]} {[%emt 00:03:01]} 12. Rd1
{[%clk 01:28:44]} {[%emt 00:03:29]} Qc7 {[%clk 01:26:32]} {[%emt 00:01:05]} 13.
a3 {[%clk 01:27:45]} {[%emt 00:01:29]} Be7 {[%clk 01:26:40]} {[%emt 00:00:21]}
14. O-O {[%clk 01:28:06]} {[%emt 00:00:10]} O-O {[%clk 01:27:03]} {[%emt
00:00:07]} 15. e5 {[%clk 01:25:36]} {[%emt 00:03:00]} Bxf3 {[%clk 01:25:16]}
{[%emt 00:02:17]} 16. Qxf3 {[%clk 01:23:48]} {[%emt 00:02:18]} Nd7 {[%clk
01:23:40]} {[%emt 00:02:06]} 17. exd6 {[%clk 01:22:27]} {[%emt 00:01:52]} Bxd6
{[%clk 01:23:58]} {[%emt 00:00:12]} 18. Ne4 {[%clk 01:21:59]} {[%emt 00:00:57]}
Bc5 {[%clk 01:22:18]} {[%emt 00:02:10]} 19. Nxc5 {[%emt 00:01:06]} Nxc5 {[%clk
01:22:32]} 20. Qg4 {[%clk 01:21:07]} {[%emt 00:01:01]} f5 {[%clk 01:21:06]}
{[%emt 00:01:57]} 21. Qf3 {[%clk 01:20:42]} {[%emt 00:00:54]} Ne4 {[%clk
01:20:35]} {[%emt 00:01:01]} 22. c3 {[%clk 01:21:03]} {[%emt 00:00:09]} Rfd8
{[%clk 01:17:15]} {[%emt 00:03:50]} 23. Qe3 {[%clk 01:19:49]} {[%emt 00:01:43]}
Qc4 {[%clk 01:14:55]} {[%emt 00:02:50]} 24. Bb6 {[%clk 01:18:07]} {[%emt
00:02:13]} Rxd1 {[%clk 01:14:06]} {[%emt 00:01:20]} 25. Rxd1 {[%clk 01:18:30]}
{[%emt 00:00:06]} Qb3 {[%clk 01:13:43]} {[%emt 00:00:53]} 26. Qe2 {[%clk
01:18:18]} {[%emt 00:00:41]} Qc4 {[%clk 01:10:14]} {[%emt 00:04:00]} 27. Qxc4
{[%clk 01:17:10]} {[%emt 00:01:38]} bxc4 {[%clk 01:10:20]} {[%emt 00:00:23]} 28.
Ba5 {[%clk 01:17:13]} {[%emt 00:00:28]} Rb8 {[%clk 01:10:27]} {[%emt 00:00:24]}
29. Bb4 {[%clk 01:17:04]} {[%emt 00:00:38]} a5 {[%clk 01:10:25]} {[%emt
00:00:32]} 30. Bxa5 {[%clk 01:17:33]} {[%emt 00:00:01]} Rxb2 {[%clk 01:10:47]}
{[%emt 00:00:08]} 31. g3 {[%clk 01:17:40]} {[%emt 00:00:23]} Rb3 {[%clk
01:10:15]} {[%emt 00:01:02]} 32. Bb4 {[%clk 01:17:59]} {[%emt 00:00:11]} Nxc3
{[%clk 01:10:37]} {[%emt 00:00:07]} 33. Rd8+ {[%clk 01:17:55]} {[%emt
00:00:35]} Kf7 {[%clk 01:10:50]} {[%emt 00:00:17]} 34. Rc8 {[%clk 01:18:13]}
{[%emt 00:00:12]} Nb5 {[%clk 01:10:14]} {[%emt 00:01:06]} 35. Rxc4 {[%clk
01:18:18]} {[%emt 00:00:25]} Nxa3 {[%clk 01:10:25]} {[%emt 00:00:19]} 36. Rc7+
{[%clk 01:18:37]} {[%emt 00:00:10]} Kg8 {[%clk 01:09:11]} {[%emt 00:01:44]} 37.
Bd6 {[%clk 01:18:16]} {[%emt 00:00:51]} Nb5 {[%clk 01:07:14]} {[%emt 00:02:28]}
38. Rc8+ {[%clk 01:18:16]} {[%emt 00:00:30]} Kf7 {[%clk 01:07:31]} {[%emt
00:00:13]} 39. Be5 {[%clk 01:18:45]} Rd3 {[%clk 01:05:29]} {[%emt 00:02:32]} 40.
Rb8 {[%clk 01:18:23]} {[%emt 00:00:52]} Nd6 {[%clk 01:04:30]} {[%emt 00:01:29]}
41. Rd8 {[%clk 01:17:46]} {[%emt 00:01:07]} Ke7 {[%clk 01:04:38]} {[%emt
00:00:22]} 42. Ra8 {[%clk 01:17:52]} {[%emt 00:00:24]} Ne8 {[%clk 01:02:00]}
{[%emt 00:03:08]} 43. Kg2 {[%clk 01:18:05]} {[%emt 00:00:16]} Rd7 {[%clk
01:02:10]} {[%emt 00:00:20]} 44. h3 {[%clk 01:18:01]} {[%emt 00:00:34]} Nf6
{[%clk 01:02:18]} {[%emt 00:00:23]} 45. Ra3 {[%clk 01:18:17]} {[%emt 00:00:13]}
Kf7 {[%clk 01:02:16]} {[%emt 00:00:33]} 46. Kf3 {[%clk 01:18:33]} {[%emt
00:00:14]} Rd2 {[%clk 01:02:35]} {[%emt 00:00:11]} 47. g4 {[%clk 01:18:51]}
{[%emt 00:00:12]} Ne4 {[%clk 01:01:46]} {[%emt 00:01:19]} 48. Ra7+ {[%clk
01:18:30]} {[%emt 00:00:51]} Ke8 {[%clk 01:01:44]} {[%emt 00:00:32]} 49. gxf5
{[%clk 01:18:26]} {[%emt 00:00:34]} exf5 {[%clk 01:02:04]} {[%emt 00:00:10]} 50.
Rxg7 {[%clk 01:18:49]} {[%emt 00:00:07]} Rf2+ {[%clk 01:02:25]} {[%emt
00:00:08]} 51. Ke3 {[%clk 01:19:12]} {[%emt 00:00:07]} Ra2 {[%clk 01:02:04]}
{[%emt 00:00:52]} 52. Rxh7 {[%clk 01:19:21]} {[%emt 00:00:21]} Ra3+ {[%clk
01:02:07]} {[%emt 00:00:27]} 53. Kd4 {[%clk 01:19:40]} {[%emt 00:00:11]} Ra4+
{[%clk 00:59:45]} {[%emt 00:02:52]} 54. Kd5 {[%clk 01:19:50]} {[%emt 00:00:20]}
Ra6 {[%clk 00:58:50]} {[%emt 00:01:25]} 55. h4 {[%clk 01:19:27]} {[%emt
00:00:52]} Nf6+ {[%clk 00:58:19]} {[%emt 00:01:02]} 56. Bxf6 {[%clk 01:19:50]}
{[%emt 00:00:08]} Rxf6 {[%clk 00:58:42]} {[%emt 00:00:06]} 57. Ke5 {[%clk
01:20:17]} {[%emt 00:00:03]} Ra6 {[%clk 00:57:54]} {[%emt 00:01:18]} 58. Kxf5
{[%clk 01:20:34]} {[%emt 00:00:12]} Ra5+ {[%clk 00:58:20]} {[%emt 00:00:05]} 59.
Ke6 {[%clk 01:20:49]} {[%emt 00:00:15]} Ra6+ {[%clk 00:58:40]} {[%emt
00:00:10]} 60. Kf5 {[%clk 01:20:57]} {[%emt 00:00:22]} Ra5+ {[%clk 00:59:02]}
{[%emt 00:00:07]} 61. Kg4 {[%clk 01:21:23]} {[%emt 00:00:04]} Ra4 {[%clk
00:59:25]} {[%emt 00:00:08]} 62. Kg5 {[%clk 01:21:38]} {[%emt 00:00:14]} Ra5+
{[%clk 00:59:46]} {[%emt 00:00:09]} 63. f5 {[%clk 01:22:03]} {[%emt 00:00:05]}
Kf8 {[%clk 01:00:03]} {[%emt 00:00:13]} 64. Rb7 {[%clk 01:22:27]} {[%emt
00:00:06]} Rc5 {[%clk 01:00:09]} {[%emt 00:00:24]} 65. h5 {[%clk 01:22:45]}
{[%emt 00:00:11]} Rd5 {[%clk 01:00:28]} {[%emt 00:00:12]} 66. h6 {[%clk
01:23:07]} {[%emt 00:00:08]} Kg8 {[%clk 01:00:46]} {[%emt 00:00:11]} 67. Kg6
{[%clk 01:23:29]} {[%emt 00:00:08]} Rd8 {[%clk 01:01:03]} {[%emt 00:00:13]} 68.
f6 {[%clk 01:23:50]} {[%emt 00:00:10]} Kh8 {[%clk 01:01:06]} {[%emt 00:00:27]}
69. Rh7+ {[%clk 01:24:15]} {[%emt 00:00:05]} Kg8 {[%clk 01:01:30]} {[%emt
00:00:06]} 70. f7+ {[%clk 01:24:41]} {[%emt 00:00:04]} Kf8 {[%clk 01:01:53]}
{[%emt 00:00:06]} 71. Rh8+ {[%clk 01:25:10]} {[%emt 00:00:02]} Ke7 {[%clk
01:02:16]} {[%emt 00:00:07]} 72. Rxd8 {[%clk 01:25:36]} {[%emt 00:00:04]} Kxd8
{[%clk 01:02:35]} {[%emt 00:00:11]} 73. f8=Q+ {[%clk 01:26:02]} {[%emt
00:00:04]} Kc7 {[%clk 01:02:59]} {[%emt 00:00:06]} 74. h7 {[%clk 01:26:27]}
{[%emt 00:00:05]} Kc6 {[%clk 01:03:23]} {[%emt 00:00:07]} 75. h8=Q {[%clk
01:26:51]} {[%emt 00:00:06]} Kd5 {[%clk 01:03:47]} {[%emt 00:00:05]} 76. Qh5+
{[%clk 01:27:14]} {[%emt 00:00:06]} Ke6 {[%clk 01:04:10]} {[%emt 00:00:08]} 77.
Qf6+ {[%clk 01:27:37]} {[%emt 00:00:07]} Kd7 {[%clk 01:04:31]} {[%emt
00:00:09]} 78. Qh7+ {[%clk 01:28:02]} {[%emt 00:00:04]} Ke8 {[%clk 01:04:51]}
{[%emt 00:00:11]} 79. Qfh8# {[%clk 01:28:28]} {[%emt 00:00:04]} 1-0